bitfinex/quotes_BTCUSD_20240905
["timestamp","ask_amount","ask_price","bid_price","bid_amount"]
[1725513643372,0.81191584,57369.0,57368.0,0.00163]
[1725513644346,0.81191584,57369.0,57368.0,0.01563]
[1725513644595,0.81191584,57369.0,57368.0,0.05066]
[1725513644828,0.81191584,57369.0,57368.0,0.06466]
[1725513645257,0.80691584,57369.0,57368.0,0.06466]
[1725513646624,0.56288184,57369.0,57368.0,0.06466]
[1725513647825,0.80691584,57369.0,57368.0,0.06466]
[1725513648056,0.56288184,57369.0,57368.0,0.06466]
[1725513648309,0.58826264,57369.0,57368.0,0.06466]
[1725513648548,0.83229664,57369.0,57368.0,0.06466]
[1725513649030,0.58826264,57369.0,57368.0,0.06466]
[1725513649516,0.83229664,57369.0,57368.0,0.06466]
[1725513650000,0.58826264,57369.0,57368.0,0.06466]
[1725513650237,0.32250025,57369.0,57368.0,0.06466]
[1725513650732,0.34905345,57369.0,57368.0,0.06466]
[1725513650958,0.10501945,57369.0,57368.0,0.06466]
[1725513651234,0.13236553,57369.0,57368.0,0.06466]
[1725513651696,0.03707692,57369.0,57368.0,0.209679]
[1725513655229,0.03707692,57369.0,57368.0,0.08766]
[1725513656983,0.03707692,57369.0,57368.0,0.209679]
[1725513657197,0.02734608,57369.0,57368.0,0.209679]
[1725513658290,0.02734608,57369.0,57368.0,0.08766]
[1725513658762,0.02734608,57369.0,57368.0,0.209679]
[1725513658973,0.222009,57373.0,57368.0,0.08766]
[1725513659188,0.00973892,57372.0,57368.0,0.08766]
[1725513659628,0.00973892,57372.0,57370.0,0.03503]
[1725513662181,0.03708369,57372.0,57370.0,0.171044]
[1725513662417,0.03708369,57372.0,57370.0,0.04903]
[1725513662889,0.03708369,57372.0,57370.0,0.171044]
[1725513663360,0.03708369,57372.0,57371.0,0.401067]
[1725513663591,0.03708369,57372.0,57371.0,0.617867]
[1725513663834,0.02734477,57372.0,57371.0,0.617867]
[1725513664530,0.02815977,57372.0,57371.0,0.617867]
[1725513664749,0.02815977,57372.0,57371.0,1.017867]
[1725513664963,0.02815977,57372.0,57371.0,1.275892]
[1725513665195,0.02815977,57372.0,57371.0,1.289892]
[1725513667492,0.000815,57372.0,57371.0,1.289892]
[1725513670301,0.09854304,57372.0,57371.0,0.46303]
[1725513670533,0.22055304,57372.0,57371.0,0.46303]
[1725513670747,0.49802774,57372.0,57371.0,0.06303]
[1725513670957,0.47068457,57372.0,57371.0,0.06303]
[1725513671604,0.37295653,57372.0,57371.0,0.06303]
[1725513671844,0.00692553,57372.0,57371.0,0.06303]
[1725513672271,0.12893553,57372.0,57371.0,0.06303]
[1725513672482,0.00692553,57372.0,57371.0,0.06303]
[1725513674321,0.03426975,57372.0,57371.0,0.06303]
[1725513674998,0.03426975,57372.0,57371.0,0.14663]
[1725513679718,0.03426975,57372.0,57371.0,0.668642]
[1725513679939,0.03426975,57372.0,57371.0,1.045767]
[1725513680372,0.02815922,57372.0,57371.0,1.045767]
[1725513680845,0.243993,57379.0,57371.0,0.923755]
[1725513681053,0.122,57377.0,57373.0,0.03503]
[1725513682190,0.00609246,57376.0,57373.0,0.03503]
[1725513682403,0.00609246,57376.0,57373.0,0.157038]
[1725513683698,0.79723,57374.0,57373.0,0.03503]
[1725513683913,1.041242,57374.0,57373.0,0.03503]
[1725513684157,1.041259,57373.0,57372.0,0.4]
[1725513684415,1.141259,57373.0,57372.0,0.4]
[1725513684622,1.14214166,57373.0,57372.0,0.4]
[1725513684846,0.854101,57370.0,57369.0,0.001632]
[1725513685064,1.23322904,57370.0,57369.0,0.001632]
[1725513685274,1.23403505,57370.0,57369.0,0.001632]
[1725513687019,1.25942155,57370.0,57369.0,0.001632]
[1725513687722,1.26142155,57370.0,57369.0,0.001632]
[1725513688415,1.26342155,57370.0,57369.0,0.001632]
[1725513689819,1.27023066,57370.0,57369.0,0.001632]
[1725513694046,1.26823066,57370.0,57369.0,0.001632]
[1725513694273,1.26623066,57370.0,57369.0,0.001632]
[1725513694487,1.26823066,57370.0,57369.0,0.001632]
[1725513695128,1.27023066,57370.0,57369.0,0.001632]
[1725513695335,1.26623066,57370.0,57369.0,0.001632]
[1725513695773,1.26723066,57370.0,57369.0,0.001632]
[1725513697572,1.26623066,57370.0,57369.0,0.001632]
[1725513698237,1.26623066,57370.0,57369.0,0.003632]
[1725513698470,1.26623066,57370.0,57369.0,0.004632]
[1725513704216,1.14421666,57370.0,57369.0,0.004632]
[1725513704441,1.26623066,57370.0,57369.0,0.004632]
[1725513707823,1.08483066,57370.0,57369.0,0.004632]
[1725513711741,1.08564666,57370.0,57369.0,0.004632]
[1725513715968,0.60102359,57370.0,57369.0,0.004632]
[1725513716406,0.84505259,57370.0,57369.0,0.004632]
[1725513723379,0.83166152,57370.0,57369.0,0.004632]
[1725513727200,1.07569052,57370.0,57369.0,0.004632]
[1725513728062,0.83166152,57370.0,57369.0,0.004632]
[1725513728516,1.07569052,57370.0,57369.0,0.004632]
[1725513731990,1.38871952,57370.0,57369.0,0.004632]
[1725513733097,1.38871952,57370.0,57369.0,0.002632]
[1725513733098,1.39071952,57370.0,57369.0,0.002632]
[1725513733304,1.39171952,57370.0,57369.0,0.002632]
[1725513733673,1.39371952,57370.0,57369.0,0.002632]
[1725513733892,1.39371952,57370.0,57369.0,0.001632]
[1725513735461,1.39671952,57370.0,57369.0,0.001632]
[1725513737603,1.65074852,57370.0,57369.0,0.001632]
[1725513737830,1.75963205,57370.0,57369.0,0.001632]
[1725513744261,1.26972757,57370.0,57369.0,0.001632]
[1725513744477,1.40454339,57370.0,57369.0,0.001632]
[1725513744693,1.42967735,57370.0,57369.0,0.001632]
[1725513744936,1.42549382,57370.0,57369.0,0.001632]
[1725513745152,1.66952282,57370.0,57369.0,0.001632]
[1725513746505,1.76952282,57370.0,57369.0,0.001632]
[1725513747648,1.77033882,57370.0,57369.0,0.001632]
[1725513751217,1.42658178,57370.0,57369.0,0.001632]
[1725513751456,1.45724296,57370.0,57369.0,0.001632]
[1725513752774,1.70127196,57370.0,57369.0,0.001632]
[1725513753033,1.45724296,57370.0,57369.0,0.001632]
[1725513754396,1.35260982,57370.0,57369.0,0.001632]
[1725513755495,0.99885278,57370.0,57369.0,0.200732]
[1725513755732,1.09658082,57370.0,57369.0,0.200732]
[1725513755944,1.17504088,57370.0,57369.0,0.200732]
[1725513757263,1.17504102,57370.0,57369.0,0.200732]
[1725513757915,1.09658082,57370.0,57369.0,0.200732]
[1725513758334,1.17504102,57370.0,57369.0,0.200732]
[1725513760174,0.04475178,57370.0,57369.0,0.200732]
[1725513760394,0.41079478,57370.0,57369.0,0.200732]
[1725513760849,0.75255182,57370.0,57369.0,0.200732]
[1725513761071,0.74955182,57370.0,57369.0,0.200732]
[1725513761498,0.74655182,57370.0,57369.0,0.203732]
[1725513761934,0.74655182,57370.0,57369.0,0.200732]
[1725513762615,0.84655182,57370.0,57369.0,0.200732]
[1725513763319,0.84655182,57370.0,57369.0,0.205732]
[1725513763537,0.84655182,57370.0,57369.0,0.209732]
[1725513764642,0.74882378,57370.0,57369.0,0.209732]
[1725513764855,0.72368982,57370.0,57369.0,0.209732]
[1725513765288,0.47966082,57370.0,57369.0,0.209732]
[1725513765510,0.11361782,57370.0,57369.0,0.209732]
[1725513765759,0.23563182,57370.0,57369.0,0.209732]
[1725513769930,0.13563182,57370.0,57369.0,0.209732]
[1725513770578,0.02734776,57373.0,57369.0,0.209732]
[1725513770795,0.02734776,57373.0,57370.0,0.1881]
[1725513771072,0.244023,57372.0,57371.0,0.1881]
[1725513771297,0.366033,57372.0,57371.0,0.1881]
[1725513771509,0.3763584,57372.0,57371.0,0.1881]
[1725513772622,0.1323354,57372.0,57371.0,0.1881]
[1725513773727,0.1323354,57372.0,57371.0,0.1901]
[1725513774160,0.1323354,57372.0,57371.0,0.1931]
[1725513774161,0.13280773,57372.0,57371.0,0.1931]
[1725513776179,0.01079773,57372.0,57371.0,0.1931]
[1725513776411,0.01079773,57372.0,57371.0,0.315112]
[1725513776633,0.01079773,57372.0,57371.0,0.350142]
[1725513776864,0.01079773,57372.0,57371.0,0.594167]
[1725513777084,0.02734776,57373.0,57372.0,0.35764]
[1725513777298,0.03765349,57373.0,57372.0,0.35764]
[1725513778453,0.03765349,57373.0,57372.0,0.868682]
[1725513778687,0.03765349,57373.0,57372.0,1.024661]
[1725513778985,0.02734776,57373.0,57372.0,1.024661]
[1725513779204,0.122004,57375.0,57374.0,0.03503]
[1725513779428,0.39335367,57375.0,57374.0,0.12323]
[1725513779652,0.16020215,57375.0,57374.0,0.12323]
[1725513779879,0.40421015,57375.0,57374.0,0.12323]
[1725513780124,0.16020215,57375.0,57374.0,0.12323]
[1725513780350,0.40421015,57375.0,57374.0,0.13323]
[1725513780568,0.16020215,57375.0,57374.0,0.14323]
[1725513781241,0.03819815,57375.0,57374.0,0.14323]
[1725513781459,0.16020215,57375.0,57374.0,0.14323]
[1725513782553,0.40421015,57375.0,57374.0,0.14323]
[1725513783674,0.16020215,57375.0,57374.0,0.14323]
[1725513784985,0.40421015,57375.0,57374.0,0.14323]
[1725513785441,0.64821815,57375.0,57374.0,0.14323]
[1725513785920,0.89222615,57375.0,57374.0,0.02]
[1725513786142,1.33208479,57375.0,57374.0,0.02]
[1725513786673,1.26198479,57375.0,57374.0,0.02]
[1725513787789,1.17188264,57375.0,57374.0,0.02]
[1725513788028,1.3029632,57375.0,57374.0,0.02]
[1725513788244,1.33030981,57375.0,57374.0,0.02]
[1725513788668,1.33030981,57375.0,57374.0,0.01]
[1725513789117,1.33030981,57375.0,57374.0,0.015]
[1725513789335,1.33030981,57375.0,57374.0,0.005]
[1725513789545,1.33030981,57375.0,57369.0,0.001632]
[1725513789546,0.854101,57370.0,57369.0,0.001632]
[1725513789754,0.95182904,57370.0,57369.0,0.001632]
[1725513790695,0.95182904,57370.0,57369.0,0.011632]
[1725513791127,0.854101,57370.0,57369.0,0.011632]
[1725513791340,0.95182904,57370.0,57369.0,0.011632]
[1725513791563,0.95216217,57370.0,57369.0,0.011632]
[1725513791846,0.95216217,57370.0,57369.0,0.021632]
[1725513792297,0.95216217,57370.0,57369.0,0.110632]
[1725513795384,0.96078508,57370.0,57369.0,0.110632]
[1725513796310,0.98484688,57370.0,57369.0,0.110632]
[1725513798392,0.98484688,57370.0,57369.0,0.021632]
[1725513798691,1.08484688,57370.0,57369.0,0.021632]
[1725513799582,1.0395787,57370.0,57369.0,0.021632]
[1725513803737,0.94185066,57370.0,57369.0,0.021632]
[1725513803965,1.0395787,57370.0,57369.0,0.021632]
[1725513804880,1.0395787,57370.0,57369.0,0.108132]
[1725513805554,0.69782166,57370.0,57369.0,0.210832]
[1725513805807,0.45379266,57370.0,57369.0,0.210832]
[1725513806951,0.45379266,57370.0,57369.0,0.245822]
[1725513809919,0.20976366,57370.0,57369.0,0.245822]
[1725513810409,0.10895604,57370.0,57369.0,0.245822]
[1725513810648,0.00895604,57370.0,57369.0,0.767839]
[1725513810866,0.1,57373.0,57371.0,0.122012]
[1725513811083,0.222005,57375.0,57372.0,0.1995]
[1725513811342,0.222005,57375.0,57373.0,0.0865]
[1725513811343,0.1,57375.0,57373.0,0.0865]
[1725513812046,0.1,57377.0,57376.0,0.1888]
[1725513812260,0.100815,57380.0,57377.0,0.0865]
[1725513812769,0.222808,57380.0,57377.0,0.0865]
[1725513812985,0.222808,57380.0,57378.0,0.22819]
[1725513812986,0.000815,57380.0,57378.0,0.22819]
[1725513813214,0.000815,57380.0,57379.0,0.0815]
[1725513813446,0.000815,57380.0,57379.0,0.1932]
[1725513813667,0.000815,57380.0,57379.0,0.315195]
[1725513814559,0.00117738,57380.0,57379.0,0.315195]
[1725513815016,0.00117738,57380.0,57379.0,0.322195]
[1725513815477,0.000815,57380.0,57379.0,0.322195]
[1725513815702,0.000815,57380.0,57379.0,0.357185]
[1725513815916,0.000815,57380.0,57379.0,0.365185]
[1725513816369,0.02815582,57380.0,57379.0,0.24319]
[1725513816668,0.02852433,57380.0,57379.0,0.23519]
[1725513816901,0.02852433,57380.0,57379.0,0.22819]
[1725513817362,0.02852433,57380.0,57379.0,0.350185]
[1725513817598,0.02852433,57380.0,57379.0,0.360185]
[1725513818482,0.02852433,57380.0,57379.0,0.370185]
[1725513818910,0.02852433,57380.0,57379.0,0.24819]
[1725513819133,0.15051733,57380.0,57379.0,0.13649]
[1725513819361,0.02852433,57380.0,57379.0,0.13649]
[1725513819814,0.15051733,57380.0,57379.0,0.13649]
[1725513820761,0.02852433,57380.0,57379.0,0.13649]
[1725513822767,0.02852433,57380.0,57379.0,0.258485]
[1725513823249,0.000815,57380.0,57379.0,0.362085]
[1725513823902,0.000815,57380.0,57379.0,0.352085]
[1725513824119,0.0098478,57380.0,57379.0,0.352085]
[1725513824462,0.00118784,57380.0,57379.0,0.361085]
[1725513824557,0.00118784,57380.0,57379.0,0.351085]
[1725513824990,0.00118784,57380.0,57379.0,0.360085]
[1725513825418,0.00118784,57380.0,57379.0,0.351085]
[1725513825651,0.00118784,57380.0,57379.0,0.360085]
[1725513825871,0.00118784,57380.0,57379.0,0.604076]
[1725513826111,0.00118784,57380.0,57379.0,0.360085]
[1725513826567,0.02852835,57380.0,57379.0,0.360085]
[1725513826794,0.02852835,57380.0,57379.0,0.760085]
[1725513827719,0.02852835,57380.0,57379.0,1.004076]
[1725513828615,0.02852835,57380.0,57379.0,1.248067]
[1725513828835,0.02815551,57380.0,57379.0,1.271067]
[1725513829993,0.02815551,57380.0,57379.0,1.515058]
[1725513830466,0.243932,57393.0,57379.0,1.515058]
[1725513830467,0.243942,57391.0,57383.0,0.243971]
[1725513830702,0.243942,57391.0,57385.0,0.320482]
[1725513830703,0.121974,57389.0,57385.0,0.320482]
[1725513830937,0.121974,57389.0,57386.0,0.0868]
[1725513831160,0.121976,57388.0,57386.0,0.0868]
[1725513831379,0.00867112,57388.0,57386.0,0.0868]
[1725513831841,0.121975,57389.0,57386.0,0.0868]
[1725513832183,0.00902479,57387.0,57386.0,0.208779]
[1725513832428,0.23096822,57393.0,57388.0,0.03499]
[1725513832660,0.1,57392.0,57391.0,0.089]
[1725513832885,0.1,57392.0,57391.0,0.12399]
[1725513832886,0.221968,57392.0,57391.0,0.12399]
[1725513833375,0.465904,57392.0,57391.0,0.12399]
[1725513834544,0.465904,57392.0,57391.0,0.13599]
[1725513834997,0.465904,57392.0,57391.0,0.12399]
[1725513835638,0.70984,57392.0,57391.0,0.12399]
[1725513835856,0.70984,57392.0,57391.0,0.13199]
[1725513836513,0.73717733,57392.0,57391.0,0.13999]
[1725513836971,0.73717733,57392.0,57391.0,0.13199]
[1725513837241,0.73717733,57392.0,57391.0,0.13999]
[1725513837893,0.73717733,57392.0,57391.0,0.05099]
[1725513838396,0.98111333,57392.0,57391.0,0.016]
[1725513839281,0.98111333,57392.0,57391.0,0.008]
[1725513839542,0.98111333,57392.0,57391.0,0.016]
[1725513840015,0.98111333,57392.0,57391.0,0.008]
[1725513840487,1.05921333,57392.0,57391.0,0.016]
[1725513840955,0.98111333,57392.0,57391.0,0.016]
[1725513841887,0.98192933,57392.0,57391.0,0.016]
[1725513843113,0.98192933,57392.0,57391.0,0.1043]
[1725513843329,0.73799333,57392.0,57391.0,0.1043]
[1725513846308,0.74674704,57392.0,57391.0,0.1043]
[1725513848054,0.52477904,57392.0,57391.0,0.1043]
[1725513848283,0.64674704,57392.0,57391.0,0.1043]
[1725513848509,0.40281104,57392.0,57391.0,0.217]
[1725513848752,0.13153771,57392.0,57391.0,0.217]
[1725513849416,0.00956971,57392.0,57391.0,0.217]
[1725513850047,0.10956971,57392.0,57391.0,0.217]
[1725513850255,0.13690488,57392.0,57391.0,0.217]
[1725513850482,0.50280888,57392.0,57391.0,0.217]
[1725513851133,0.25887288,57392.0,57391.0,0.217]
[1725513852967,0.23153771,57392.0,57391.0,0.217]
[1725513853185,0.2588729,57392.0,57391.0,0.217]
[1725513854503,0.2588729,57392.0,57391.0,0.21863]
[1725513856554,0.0369049,57392.0,57391.0,0.10593]
[1725513857218,0.1588729,57392.0,57391.0,0.10593]
[1725513857645,0.4028089,57392.0,57391.0,0.10593]
[1725513857869,0.6467449,57392.0,57391.0,0.01763]
[1725513860394,0.4028089,57392.0,57391.0,0.21613]
[1725513860623,0.1588729,57392.0,57391.0,0.21613]
[1725513861117,0.00956971,57392.0,57391.0,0.21613]
[1725513862870,0.000816,57392.0,57391.0,0.21613]
[1725513863748,0.000816,57392.0,57391.0,0.61613]
[1725513863960,0.01001325,57392.0,57391.0,0.61613]
[1725513864192,0.000816,57392.0,57391.0,0.61613]
[1725513864628,0.01001325,57392.0,57391.0,0.61613]
[1725513864839,0.00127139,57392.0,57391.0,0.61613]
[1725513869799,0.02860489,57392.0,57391.0,0.61613]
[1725513870737,0.00127139,57392.0,57391.0,0.61613]
[1725513876405,0.01000545,57392.0,57391.0,0.61613]
[1725513877627,0.13197345,57392.0,57391.0,0.61613]
[1725513878252,0.37590945,57392.0,57391.0,0.61613]
[1725513878500,0.13197345,57392.0,57391.0,0.61613]
[1725513878731,0.15930832,57392.0,57391.0,0.21613]
[1725513879140,0.13197345,57392.0,57391.0,0.21613]
[1725513879363,0.15930832,57392.0,57391.0,0.21613]
[1725513880380,0.40324432,57392.0,57391.0,0.21613]
[1725513880706,0.37590945,57392.0,57391.0,0.21613]
[1725513881652,0.37590945,57392.0,57391.0,0.10513]
[1725513882820,0.37590945,57392.0,57391.0,0.50513]
[1725513883715,0.11408166,57392.0,57391.0,0.50513]
[1725513883933,0.36569556,57392.0,57391.0,0.50513]
[1725513884369,0.0076779,57392.0,57391.0,0.50513]
[1725513884590,0.0076779,57392.0,57391.0,0.62213]
[1725513885971,0.03501243,57392.0,57391.0,0.62213]
[1725513886223,0.03501243,57392.0,57391.0,0.7671]
[1725513886444,0.02733453,57392.0,57391.0,0.64513]
[1725513886665,0.000815,57393.0,57392.0,0.0868]
[1725513886884,0.000815,57393.0,57392.0,0.1098]
[1725513887322,0.02814894,57393.0,57392.0,0.1098]
[1725513887988,0.02814894,57393.0,57392.0,0.24225253]
[1725513888669,0.02814894,57393.0,57392.0,0.68424253]
[1725513889362,0.02814894,57393.0,57392.0,0.55879]
[1725513889818,0.03580473,57393.0,57392.0,0.15179]
[1725513890065,0.03580473,57393.0,57392.0,0.15879]
[1725513890295,0.03580473,57393.0,57392.0,0.17279]
[1725513890955,0.00847079,57393.0,57392.0,0.57279]
[1725513891635,0.00847079,57393.0,57392.0,1.049694]
[1725513891872,0.000815,57393.0,57392.0,1.29363]
[1725513892334,0.000815,57393.0,57392.0,0.805758]
[1725513892558,0.000815,57393.0,57392.0,1.14735595]
[1725513895745,0.02814665,57393.0,57392.0,1.14735595]
[1725513895968,0.02814665,57393.0,57392.0,1.049694]
[1725513900301,0.02814665,57393.0,57392.0,0.68379]
[1725513900968,0.00119023,57393.0,57392.0,0.68379]
[1725513901698,0.000815,57393.0,57392.0,0.805758]
[1725513902152,0.000815,57393.0,57392.0,1.049694]
[1725513902588,0.000815,57393.0,57392.0,1.29363]
[1725513904191,0.0281465,57393.0,57392.0,1.29363]
[1725513910716,0.000815,57393.0,57392.0,1.29363]
[1725513911163,0.32541504,57409.0,57397.0,0.11839]
[1725513911377,0.32541504,57409.0,57392.0,0.805936]
[1725513911378,0.1,57405.0,57401.0,0.03499]
[1725513911594,0.22970935,57405.0,57404.0,0.03499]
[1725513911809,0.10776935,57405.0,57404.0,0.03499]
[1725513912037,0.22970935,57405.0,57404.0,0.03499]
[1725513912477,0.121942,57404.0,57401.0,0.03499]
[1725513912692,0.311346,57402.0,57401.0,0.03499]
[1725513912911,0.20348232,57402.0,57401.0,0.03499]
[1725513913365,0.14927732,57402.0,57401.0,0.03499]
[1725513913603,0.14927732,57402.0,57401.0,0.04699]
[1725513913831,0.365839,57402.0,57401.0,0.04699]
[1725513914041,0.121946,57402.0,57401.0,0.04699]
[1725513914260,0.14927652,57402.0,57401.0,0.06099]
[1725513914949,0.14927652,57402.0,57401.0,0.04899]
[1725513915165,0.14968835,57402.0,57401.0,0.04899]
[1725513915399,0.14968835,57402.0,57401.0,0.06299]
[1725513915820,0.39358135,57402.0,57401.0,0.06299]
[1725513917641,0.39358135,57402.0,57401.0,0.14669]
[1725513918729,0.39316952,57402.0,57401.0,0.14669]
[1725513918949,0.14927652,57402.0,57401.0,0.14669]
[1725513920733,0.121946,57402.0,57401.0,0.14669]
[1725513921181,0.1,57405.0,57401.0,0.379338]
[1725513921182,0.22194,57405.0,57401.0,0.379338]
[1725513921437,0.22194,57405.0,57403.0,0.03499]
[1725513921438,0.1,57405.0,57403.0,0.03499]
[1725513921688,0.121937,57407.0,57403.0,0.156934]
[1725513921906,0.1,57408.0,57403.0,0.156934]
[1725513921907,0.221939,57406.0,57403.0,0.03499]
[1725513922865,0.1,57406.0,57403.0,0.03499]
[1725513923102,0.121941,57405.0,57403.0,0.03499]
[1725513923322,0.121941,57405.0,57403.0,0.05499]
[1725513923540,0.221938,57406.0,57403.0,0.05499]
[1725513923756,0.1,57406.0,57403.0,0.45499]
[1725513923996,0.221938,57406.0,57403.0,0.45499]
[1725513924201,0.24926749,57406.0,57403.0,0.45499]
[1725513924677,0.24926749,57406.0,57403.0,0.44499]
[1725513924903,0.24926749,57406.0,57403.0,0.43499]
[1725513925119,0.24926749,57406.0,57403.0,0.44599]
[1725513925321,0.24926749,57406.0,57403.0,0.45699]
[1725513925322,0.121941,57405.0,57403.0,0.45699]
[1725513925593,0.121941,57405.0,57403.0,0.43499]
[1725513925830,0.121941,57405.0,57403.0,0.44499]
[1725513926282,0.121941,57405.0,57403.0,0.43499]
[1725513926502,0.122756,57405.0,57403.0,0.44499]
[1725513926736,0.122756,57405.0,57403.0,0.45799]
[1725513926958,0.122756,57405.0,57403.0,0.44799]
[1725513927361,0.122756,57405.0,57404.0,0.22739]
[1725513927630,0.222756,57405.0,57404.0,0.22739]
[1725513927884,0.100815,57405.0,57404.0,0.22739]
[1725513928618,0.000815,57405.0,57404.0,0.24039]
[1725513929076,0.000815,57405.0,57404.0,0.25339]
[1725513930172,0.000815,57405.0,57404.0,0.375332]
[1725513930612,0.000815,57405.0,57404.0,0.25339]
[1725513931043,0.100815,57405.0,57404.0,0.25339]
[1725513932463,0.100815,57405.0,57404.0,0.375332]
[1725513932907,0.100815,57405.0,57404.0,0.25339]
[1725513933355,0.000815,57405.0,57404.0,0.25339]
[1725513933815,0.000815,57405.0,57404.0,0.375332]
[1725513935193,0.0281442,57405.0,57404.0,0.375332]
[1725513940897,0.000815,57405.0,57404.0,0.362332]
[1725513941332,0.000815,57405.0,57404.0,0.268032]
[1725513941765,0.000815,57405.0,57404.0,0.241032]
[1725513941976,0.000815,57405.0,57404.0,0.255032]
[1725513942194,0.000815,57405.0,57404.0,0.269032]
[1725513942416,0.000815,57405.0,57404.0,0.255032]
[1725513942884,0.1834689,57411.0,57406.0,0.03499]
[1725513943096,0.121933,57409.0,57406.0,0.03499]
[1725513944488,0.121933,57409.0,57406.0,0.04899]
[1725513944940,0.3053979,57411.0,57408.0,0.03499]
[1725513945167,0.1,57410.0,57408.0,0.03499]
[1725513946520,0.22193,57410.0,57408.0,0.03499]
[1725513946743,0.22193,57410.0,57408.0,0.04799]
[1725513946976,0.121932,57409.0,57408.0,0.04799]
[1725513947260,0.221932,57409.0,57408.0,0.04799]
[1725513947723,0.465796,57409.0,57408.0,0.04799]
[1725513947947,0.465796,57409.0,57408.0,0.06099]
[1725513948856,0.465796,57409.0,57408.0,0.04799]
[1725513949081,0.465796,57409.0,57408.0,0.06199]
[1725513949301,0.465796,57409.0,57408.0,0.04899]
[1725513950653,0.465796,57409.0,57408.0,0.06299]
[1725513951518,0.70966,57409.0,57408.0,0.06299]
[1725513953203,0.48341731,57409.0,57408.0,0.06299]
[1725513953436,0.60534931,57409.0,57408.0,0.06299]
[1725513954298,0.84921331,57409.0,57408.0,0.028]
[1725513955462,0.94921331,57409.0,57408.0,0.028]
[1725513958994,1.38213279,57409.0,57408.0,0.028]
[1725513959198,1.4083078,57409.0,57408.0,0.028]
[1725513959442,1.30357731,57409.0,57408.0,0.028]
[1725513959927,1.30357731,57409.0,57408.0,0.014]
[1725513960140,1.30357731,57409.0,57408.0,0.017]
[1725513960368,1.30357731,57409.0,57408.0,0.003]
[1725513960573,1.206224,57407.0,57406.0,0.00163]
[1725513960784,1.50859966,57407.0,57406.0,0.00163]
[1725513961251,1.41095706,57407.0,57406.0,0.00163]
[1725513961459,1.4038666,57407.0,57406.0,0.00163]
[1725513961675,1.48240013,57407.0,57406.0,0.00163]
[1725513961896,1.4038666,57407.0,57406.0,0.00163]
[1725513962586,1.4038666,57407.0,57406.0,0.00763]
[1725513962795,1.4038666,57407.0,57406.0,0.01263]
[1725513963244,1.50859966,57407.0,57406.0,0.01263]
[1725513963466,1.4038666,57407.0,57406.0,0.01263]
[1725513963680,1.50856884,57407.0,57406.0,0.01263]
[1725513964135,1.4013666,57407.0,57406.0,0.01263]
[1725513964595,1.50606884,57407.0,57406.0,0.01263]
[1725513964806,1.4013666,57407.0,57406.0,0.01263]
[1725513965248,1.2950666,57407.0,57406.0,0.01263]
[1725513965462,1.37357526,57407.0,57406.0,0.01263]
[1725513965683,1.2950666,57407.0,57406.0,0.01263]
[1725513965894,0.953552,57407.0,57406.0,0.01263]
[1725513966113,1.0511946,57407.0,57406.0,0.01263]
[1725513974196,1.0511946,57407.0,57406.0,0.10013]
[1725513978421,0.953552,57407.0,57406.0,0.10013]
[1725513980272,0.1,57407.0,57406.0,0.20803]
[1725513980495,0.122748,57409.0,57408.0,0.2002]
[1725513981180,0.1500754,57409.0,57408.0,0.2002]
[1725513981868,0.122748,57409.0,57408.0,0.2002]
[1725513982509,0.000816,57409.0,57408.0,0.2002]
[1725513982731,0.000816,57409.0,57408.0,0.6002]
[1725513983022,0.122748,57409.0,57408.0,0.6002]
[1725513983247,0.000816,57409.0,57408.0,0.6002]
[1725513983467,0.000816,57409.0,57408.0,0.6062]
[1725513983685,0.000816,57409.0,57408.0,0.6132]
[1725513984114,0.02814289,57409.0,57408.0,0.6132]
[1725513989015,0.15007489,57409.0,57408.0,0.6132]
[1725513989920,0.15007489,57409.0,57408.0,0.2132]
[1725513992739,0.15007489,57409.0,57408.0,0.6132]
[1725513999028,0.15007489,57409.0,57408.0,0.64819]
[1725513999935,0.15007489,57409.0,57408.0,0.64119]
[1725514000373,0.15007489,57409.0,57408.0,0.64719]
[1725514000820,0.39393889,57409.0,57408.0,0.648822]
[1725514001053,0.122748,57409.0,57408.0,0.660822]
[1725514001730,0.610476,57409.0,57408.0,0.552922]
[1725514002870,0.610476,57409.0,57408.0,0.152922]
[1725514003090,0.487728,57409.0,57408.0,0.152922]
[1725514003558,0.60966,57409.0,57408.0,0.152922]
[1725514004436,0.60966,57409.0,57408.0,0.060622]
[1725514004437,0.853524,57409.0,57408.0,0.060622]
[1725514008138,0.121944,57403.0,57402.0,0.410672]
[1725514008895,0.63705133,57403.0,57402.0,0.410672]
[1725514009136,0.97858293,57403.0,57402.0,0.410672]
[1725514009573,0.97858293,57403.0,57402.0,0.424672]
[1725514009793,0.97858293,57403.0,57402.0,0.04899]
[1725514010016,0.609732,57402.0,57399.0,0.03499]
[1725514010264,0.609732,57402.0,57401.0,0.00109346]
[1725514011414,0.610732,57402.0,57401.0,0.04608346]
[1725514012313,0.854625,57402.0,57401.0,0.04608346]
[1725514012532,0.9522676,57402.0,57401.0,0.04608346]
[1725514012972,0.97710825,57402.0,57401.0,0.04608346]
[1725514013427,0.97810825,57402.0,57401.0,0.05008346]
[1725514013860,0.88046565,57402.0,57401.0,0.05008346]
[1725514014078,0.88046565,57402.0,57401.0,0.13458346]
[1725514018809,3.88046565,57402.0,57401.0,0.13458346]
[1725514019256,3.97810825,57402.0,57401.0,0.13458346]
[1725514019700,3.88046565,57402.0,57401.0,0.13458346]
[1725514020113,3.97810825,57402.0,57401.0,0.13458346]
[1725514020284,3.97810825,57402.0,57401.0,0.05008346]
[1725514021519,3.63657265,57402.0,57401.0,0.05008346]
[1725514023072,3.611732,57402.0,57401.0,0.05008346]
[1725514023288,3.002,57402.0,57401.0,0.24768346]
[1725514023503,3.002,57402.0,57401.0,0.39263246]
[1725514024814,2.67329744,57402.0,57401.0,0.39263246]
[1725514025701,2.70062691,57402.0,57401.0,0.39263246]
[1725514027648,2.70062691,57402.0,57401.0,0.79263246]
[1725514027856,2.67329744,57402.0,57401.0,0.79263246]